Cogmind - Beta 16.1 @@@ ROGUE MODE // 2026.03.24 @ 23:05:29 Player: JuustuToug Result: Assimilated 0b10! Performance ------------- Evolutions (9) 4500 Regions Visited (26) 5200 Robots Destroyed (394) 1970 Value Destroyed (18472) 18472 Prototype IDs (68) 1360 Alien Tech Used (0) 0 Bonus (17372) 17372 TOTAL SCORE: 48874 Bonus ------- High Alert Combat Kills 896 Follower Combat Kills 439 Hunted by Unchained 500 Entered Garrisons 600 Used RIF Installer 2000 Network Hubs Disabled 200 Aligned with FarCom 300 Met R17 at Cetus 500 Met R17 at Research 2000 Destroyed MAIN.C Guards 500 Met MAIN.C 5000 Used 0b10 Conduit 2000 Win 3000 Friendly Fire -563 Cogmind --------- Core Integrity 644/1600 Matter 271/300 Energy 84/100 System Corruption 44% Temperature Cool (0) Movement Core (50) Location 0b10 Command Parts ------- > --- POWER (2) -------- (None) > --- PROPULSION (7) --- Myomer Leg Centrium Leg Centrium Leg Centrium Leg > --- UTILITY (13) ----- Improved Hacking Suite > --- WEAPON (3) ------- (None) > --- INVENTORY (5) ---- Improved Transmission Jammer Quantum Rifle Enhanced Quantum Rifle Compact HERF Cannon Advanced KE Penetrator Peak State ------------ > --- POWER ------------ Light Quantum Reactor Light Quantum Reactor > --- PROPULSION ------- Myomer Leg Experimental Flexi-carbon Leg Biometal Leg Biometal Leg Centrium Leg Centrium Leg Centrium Leg > --- UTILITY ---------- Experimental Power Amplifier Advanced Heat Sink Advanced Heat Sink Advanced Heat Sink High-capacity Storage Unit Long-range Terrain Scanner Experimental Terrain Scan Processor Improved Transmission Jammer Improved Reaction Control System Advanced Point Defense System Improved Hacking Suite Advanced Hacking Suite Advanced Dynamic Insulation System > --- WEAPON ----------- Quantum Rifle Enhanced Quantum Rifle Enhanced Nova Cannon > --- INVENTORY -------- Light Quantum Reactor Light Quantum Reactor Advanced Heavy Siege Treads Myomer Leg Centrium Leg Centrium Leg Advanced Heat Sink Improved Transmission Jammer Advanced ECM Suite Enhanced Quantum Rifle Compact HERF Cannon Nova Cannon Nova Cannon YOLO Cannon Advanced KE Penetrator Hellfire Missile Launcher Improved Remote Datajack [Rating: 195] Favorites ----------- Power Improved Deuterium Engine Engine Improved Deuterium Engine Power Core Neutrino Core Reactor Light Antimatter Reactor Propulsion Light Treads Treads Light Treads Leg Experimental Flexi-carbon Leg Wheel Armored Huge Wheel Hover Unit Combat Antigrav System Flight Unit Nuclear Pulse Thruster Utility High-capacity Storage Unit Device Advanced Heat Sink Storage High-capacity Storage Unit Processor Core Analyzer Hackware Advanced Hacking Suite Protection Layered Light Armor Plating Weapon Ion Cannon Energy Gun Wave Gun Energy Cannon Ion Cannon Ballistic Gun Advanced KE Penetrator Ballistic Cannon Mini Assault Cannon Launcher Heavy Rocket Launcher Special Weapon Remote Datajack Impact Weapon Makeshift Hammer Slashing Weapon Katana Piercing Weapon Plasma Lance Special Melee Weapon Improved Datajack Build | -11 -10 -10 -10 -9 -8 -8 -8 -8 -7 -7 -7 -7 -7 -6 -6 -6 -5 -4 -4 -4 -4 -4 -3 -2 -1 -1 ------- Run | Yrd Mat Min Exi Min Mat Gar Mat Gar Fac Gar Fac Low Low Fac Low Low Fac Fac Ext Cet Arc Hub Res Res Acc Com Slots Evolved 18 | . . . . . 4 . . . 2 . . . . 2 . . 2 2 . . . . 2 2 2 . Power 1 | . . . . . . . . . . . . . . . . . 1 . . . . . . . . . Propulsion 5 | . . . . . 2 . . . . . . . . . . . . 1 . . . . 1 . 1 . Utility 11 | . . . . . 1 . . . 2 . . . . 2 . . 1 1 . . . . 1 2 1 . Weapon 1 | . . . . . 1 . . . . . . . . . . . . . . . . . . . . . Parts Attached 352 | 9 6 . 3 2 15 11 19 7 22 15 8 . 1 14 5 . 44 29 21 21 5 6 35 19 22 13 Power 50 | 2 . . . . 1 1 2 1 4 2 . . . 1 1 . 8 2 3 4 . . 7 . 6 5 Engine 14 | 2 . . . . 1 1 2 1 4 2 . . . . 1 . . . . . . . . . . . Core 10 | . . . . . . . . . . . . . . 1 . . 7 . 1 1 . . . . . . Reactor 26 | . . . . . . . . . . . . . . . . . 1 2 2 3 . . 7 . 6 5 Propulsion 90 | 2 2 . . . 5 5 5 1 5 5 5 . . 4 2 . 5 9 7 3 . 6 5 2 9 3 Treads 48 | 2 2 . . . 5 5 5 1 3 5 5 . . 3 2 . 5 . . 2 . 2 . . . 1 Leg 39 | . . . . . . . . . 1 . . . . . . . . 9 7 1 . 4 4 2 9 2 Wheel 1 | . . . . . . . . . 1 . . . . . . . . . . . . . . . . . Hover 1 | . . . . . . . . . . . . . . . . . . . . . . . 1 . . . Flight 1 | . . . . . . . . . . . . . . 1 . . . . . . . . . . . . Utility 122 | 3 2 . 2 1 2 4 2 3 7 6 3 . . 5 2 . 19 15 6 5 4 . 11 12 4 4 Device 74 | 1 . . 1 1 1 4 1 3 2 5 3 . . 2 1 . 10 7 3 1 2 . 10 9 4 3 Storage 8 | 2 2 . 1 . . . 1 . . . . . . . . . 1 . . . . . . . . 1 Processor 9 | . . . . . . . . . 2 . . . . . . . 1 4 . . . . . 2 . . Hackware 14 | . . . . . 1 . . . 3 1 . . . 1 . . 1 2 2 . 2 . . 1 . . Protection 17 | . . . . . . . . . . . . . . 2 1 . 6 2 1 4 . . 1 . . . Artifact . | . . . . . . . . . . . . . . . . . . . . . . . . . . . Weapon 90 | 2 2 . 1 1 7 1 10 2 6 2 . . 1 4 . . 12 3 5 9 1 . 12 5 3 1 Energy Gun 34 | . 1 . . . 1 . 1 . 1 . . . 1 4 . . 6 2 2 3 1 . 7 2 2 . Energy Cannon 22 | . . . 1 . 3 1 5 1 2 . . . . . . . 3 . . . . . 3 2 . 1 Ballistic Gun 17 | 2 . . . 1 2 . 2 . . . . . . . . . 2 . 1 6 . . 1 . . . Ballistic Cannon 1 | . . . . . . . 1 . . . . . . . . . . . . . . . . . . . Launcher 8 | . 1 . . . 1 . 1 1 . 1 . . . . . . . . 1 . . . . 1 1 . Special Weapon 2 | . . . . . . . . . . 1 . . . . . . . . 1 . . . . . . . Impact Weapon 3 | . . . . . . . . . 2 . . . . . . . 1 . . . . . . . . . Slashing Weapon 1 | . . . . . . . . . . . . . . . . . . 1 . . . . . . . . Piercing Weapon 1 | . . . . . . . . . . . . . . . . . . . . . . . 1 . . . Special Melee Weapon 1 | . . . . . . . . . 1 . . . . . . . . . . . . . . . . . Unidentified Prototypes 31 | . . . . 1 . . 5 . 2 . . . . 3 . . 2 2 . 4 . 1 6 3 1 1 Parts Lost 94 | . 2 . . . 1 1 . 8 5 6 . . . . 4 3 6 . 4 5 1 . 5 6 3 34 Power 15 | . . . . . . . . 1 1 1 . . . . 1 . . . 2 1 . . 1 1 1 5 Propulsion 23 | . 1 . . . 1 . . 2 2 2 . . . . 2 1 3 . . 1 . . . . . 8 Utility 37 | . . . . . . 1 . 2 2 1 . . . . . 1 2 . 2 1 1 . 3 4 2 15 Weapon 19 | . 1 . . . . . . 3 . 2 . . . . 1 1 1 . . 2 . . 1 1 . 6 Highest Loss Streak 14 | . 1 . . . 1 1 . 7 2 3 . . . . 2 4 2 . 2 4 1 . 2 2 1 14 To Critical Strikes 2 | . . . . . . . . . . . . . . . . . . . . 1 . . 1 . . . Average Backups 17 | 3 8 14 15 17 15 18 18 18 18 18 17 18 18 17 16 15 18 18 18 18 17 17 18 18 18 16 Power 1 | 1 1 1 1 1 1 1 1 . 1 . 1 1 1 1 . . . 1 . 1 1 1 1 . 1 1 Propulsion 3 | . . 4 4 4 2 5 4 5 5 5 3 4 4 4 3 3 2 2 4 3 2 2 3 4 4 3 Utility 5 | . 3 5 4 4 3 4 5 5 5 5 6 6 6 5 5 5 7 7 6 4 4 5 6 5 4 3 Weapon 6 | . 3 4 6 7 8 8 7 5 5 4 5 6 5 5 6 5 5 5 6 7 7 7 6 6 7 6 Tool/Special . | . . . . . . . . . . . . . . . . . . . . . . . . . . . Unused Backups 74 | . 1 . 1 . 5 8 7 1 3 3 2 . . 4 1 . 16 3 3 2 2 . 3 1 4 4 Power 17 | . . . . . 1 1 2 1 2 . . . . 1 . . 3 . 1 . 2 . 1 . 1 1 Propulsion 10 | . . . . . 1 2 . . . . . . . . 1 . 3 . 1 1 . . . . 1 . Utility 21 | . . . 1 . 1 1 1 . . 2 1 . . . . . 8 2 1 . . . 2 . . 1 Weapon 25 | . 1 . . . 2 4 4 . 1 . 1 . . 3 . . 2 1 . 1 . . . 1 2 2 Tool/Special 1 | . . . . . . . . . . 1 . . . . . . . . . . . . . . . . Average Slot Usage (%) 96 | . 97 100 83 71 99 99 99 98 91 99 99 100 100 99 99 100 93 98 97 85 83 84 96 99 99 83 Engine 4 | . 14 14 14 14 9 9 9 8 6 6 7 7 7 2 3 6 1 . . . . . . . . . Core 1 | . . . . . . . . . . . . . . 3 2 . 8 1 . 3 . . . . . . Reactor 2 | . . . . . . . . . . . . . . . . . . 8 9 5 10 10 8 8 8 7 Treads 18 | . 25 28 28 28 35 36 36 36 15 28 30 30 30 25 26 26 17 . . 7 10 9 1 . . 1 Leg 6 | . . . . . . . . . . . . . . . . . . 24 26 6 . . 23 26 27 24 Device 15 | . 14 14 9 3 8 14 17 17 15 7 15 15 15 12 13 19 15 12 14 13 10 10 16 20 30 26 Storage 6 | . 14 14 14 14 9 9 9 9 7 7 7 7 7 6 6 6 5 5 5 5 5 5 4 4 4 4 Processor 6 | . . . . . . . . . 3 7 7 7 7 6 6 6 10 12 10 10 10 10 9 8 8 2 Hackware 7 | . . . . . 8 3 . . 10 14 7 7 7 12 13 13 7 9 11 5 7 15 10 12 9 6 Protection 2 | . . . . . . . . . . . . . . 5 6 . 4 4 2 9 12 5 4 3 . . Energy Gun 5 | . 8 . . . . . . . . . . . 1 7 12 13 11 10 10 7 10 10 8 7 7 4 Energy Cannon 10 | . . . 3 . 14 26 26 26 21 22 22 22 21 11 5 6 3 4 4 . . . . 1 4 4 Ballistic Gun 2 | . 18 28 13 11 11 . . . . . . . . . . . . . . 6 5 5 3 2 . . Peak Build Rating 195 | 7 8 8 26 16 32 33 39 39 50 49 50 54 54 62 62 57 101 119 122 148 148 148 161 181 188 195 Average Rating 76 | 6 7 8 12 9 21 30 35 37 45 43 48 53 53 58 58 55 84 111 115 132 145 137 148 170 183 161 On Entrance 69 | . 7 8 8 10 10 32 32 39 34 49 47 49 54 54 60 56 52 99 115 118 147 140 135 160 167 185 Avg Prop Armor Cover (%) 11 | . . . . . . . . . 13 17 . . . . . . . . . 3 . . 1 4 4 21 Naked Turns . | . . . . . . . . . . . . . . . . . . . . . . . . . . . Heaviest Build 120 | 18 29 29 63 48 61 67 75 70 71 73 72 72 72 72 72 69 101 92 105 119 119 106 112 114 112 120 Greatest Support 194 | 40 40 40 40 40 96 96 90 90 82 88 88 88 88 88 88 80 140 108 108 160 160 160 160 150 190 194 Greatest Overweight (x) 2 | . . . 1 1 . . . . 2 2 . . . 1 . . 1 . . 1 . 2 . . . 1 Average Overweight (x) . | . . . . 1 . . . . 1 . . . . . . . . . . . . . . . . . Largest Inventory Capacity 20 | 8 15 15 20 20 20 20 20 20 20 20 20 20 20 20 20 20 20 20 20 20 20 20 20 20 20 20 Average Capacity 19 | 7 9 15 19 20 20 20 20 20 20 20 20 20 20 20 20 20 20 20 20 20 20 20 20 20 20 19 Most Carried 20 | 4 15 15 18 20 20 20 20 20 20 20 20 20 20 20 20 19 20 20 20 20 20 20 20 20 20 20 Average Carried 18 | 3 8 14 15 18 16 19 19 19 19 19 19 20 19 19 18 17 19 19 19 19 19 19 19 19 19 16 Final Capacity 20 | 8 15 15 20 20 20 20 20 20 20 20 20 20 20 20 20 20 20 20 20 20 20 20 20 20 20 5 Final Carried 20 | 4 14 15 17 18 20 20 20 20 20 20 20 20 20 20 19 18 20 19 20 20 20 20 20 20 20 5 Class Distribution -------------------- 24% | Scavenger-Skirmisher 22% | Skirmisher 13% | Mutant 10% | Hacker-Skirmisher 9% | Scavenger-Tank 9% | Gunner 6% | Scientist-Skirmisher Dominant Class ---------------- Mutant | -10/Materials Mutant | -10/Mines Mutant | -10/Exiles Mutant | -9/Mines Skirmisher | -8/Materials Scavenger-Skirmisher | -8/Garrison Scavenger-Skirmisher | -8/Materials Skirmisher | -8/Garrison Scavenger-Skirmisher | -7/Factory Skirmisher | -7/Garrison Skirmisher | -7/Factory Gunner | -7/Lower Caves Gunner | -7/Lower Caves Skirmisher | -6/Factory Gunner | -6/Lower Caves Gunner | -6/Lower Caves Scavenger-Tank | -5/Factory Hacker-Skirmisher | -4/Factory Hacker-Skirmisher | -4/Extension Scavenger-Tank | -4/Cetus Scavenger-Tank | -4/Archives Scavenger-Skirmisher | -4/Hub_04(d) Scavenger-Skirmisher | -3/Research Scavenger-Skirmisher | -2/Research Scientist-Skirmisher | -1/Access Scientist-Skirmisher | -1/Command Resources | -11 -10 -10 -10 -9 -8 -8 -8 -8 -7 -7 -7 -7 -7 -6 -6 -6 -5 -4 -4 -4 -4 -4 -3 -2 -1 -1 ----------- Run | Yrd Mat Min Exi Min Mat Gar Mat Gar Fac Gar Fac Low Low Fac Low Low Fac Fac Ext Cet Arc Hub Res Res Acc Com Matter Collected 9452 | 417 365 66 . 78 191 409 342 251 355 440 195 234 30 324 276 91 862 599 921 363 244 141 817 390 560 491 Remotely . | . . . . . . . . . . . . . . . . . . . . . . . . . . . Salvage Created 17311 | 264 710 88 . 95 751 673 1063 769 705 1006 406 236 10 389 339 115 2042 1231 1485 621 467 285 601 701 1205 1054 Parts 871 | 26 56 14 . . 45 49 55 31 35 48 23 14 . 19 18 8 100 64 46 30 23 17 22 31 55 42 Haulers Intercepted 7 | . 1 . . . 2 . 4 . . . . . . . . . . . . . . . . . . . Recyclers Shooed 17 | . 1 . . . 1 . . . . . . . . . . . 4 3 1 . . . . 2 2 3 Parts Field Recycled . | . . . . . . . . . . . . . . . . . . . . . . . . . . . Retrieved Matter . | . . . . . . . . . . . . . . . . . . . . . . . . . . . Parts Self-Destructed 34 | . . . . . . . . . . . . 9 3 . 15 7 . . . . . . . . . . Prevented 5 | . . . . . . . . . . . . 1 . . 4 . . . . . . . . . . . Parts Restored . | . . . . . . . . . . . . . . . . . . . . . . . . . . . Kills | -11 -10 -10 -10 -9 -8 -8 -8 -8 -7 -7 -7 -7 -7 -6 -6 -6 -5 -4 -4 -4 -4 -4 -3 -2 -1 -1 ------- Run | Yrd Mat Min Exi Min Mat Gar Mat Gar Fac Gar Fac Low Low Fac Low Low Fac Fac Ext Cet Arc Hub Res Res Acc Com Combat Hostiles Destroyed 305 | . 17 6 . . 16 20 11 19 14 22 6 9 . 10 12 2 25 15 18 8 3 7 13 15 14 23 Melee 1 | . . . . . . 1 . . . . . . . . . . . . . . . . . . . . Guns 94 | . 16 6 . . 1 . . . . . . . . 2 4 2 15 8 10 6 3 4 7 1 8 1 Cannons 108 | . . . . . 5 12 11 13 12 17 5 2 . 1 2 . 5 6 2 . . . . 3 6 6 AOE 81 | . 1 . . . 10 7 . 6 . 5 . 7 . 4 4 . 4 . 3 . . 3 6 9 . 12 Classes Destroyed 21 | 3 6 . . . 2 2 2 . . 1 . 1 . . . . . . 1 . . . 2 . . 1 Worker 15 | 2 1 . . . 5 . . . 1 . . . . . . . . 1 . . . 1 . . 2 2 Builder 9 | . 3 . . . . . 1 . . . . . . . . . 1 2 1 . . . . 1 . . Tunneler 14 | 8 2 . . . . . . . . . . . . . . . 2 . 1 . . 1 . . . . Hauler 7 | . 1 . . . 2 . 4 . . . . . . . . . . . . . . . . . . . Recycler 19 | 1 1 . . 1 2 . 1 . . . 1 . . . . . 3 3 2 . . . . 1 1 2 Mechanic 2 | . . . . . . . 1 . . . . . . . . . . . . . . . . . . 1 Operator 8 | . 1 . . . . . 1 . . . . . . . . . 1 . . . 5 . . . . . Watcher 14 | . 3 . . . 1 . 3 . . . 1 . . 1 . . 2 . . 1 . . . 1 1 . Swarmer 97 | . 9 6 . . 8 6 . . 1 3 . 7 . 4 6 . 5 5 3 . . 4 7 13 . 10 Grunt 74 | . 8 . . . 4 6 6 11 5 7 . . . . 3 . 4 1 9 . . 3 4 . . 3 Brawler 4 | . . . . . 1 . . 1 . . . . . . . . 1 1 . . . . . . . . Duelist 9 | . . . . . . 2 1 3 1 . . . . . . . . 1 . . . . . . . 1 Sentry 51 | . . . . . 3 5 3 2 3 5 4 . . 3 1 . 6 3 3 . 3 . 1 2 4 . Specialist 1 | . . . . . . . . . . 1 . . . . . . . . . . . . . . . . Hunter 11 | . . . . . . . 1 . 1 1 1 1 . . 2 2 1 . 1 . . . . . . . Programmer 42 | . . . . . . 1 . 2 3 5 1 1 . 3 . . 8 4 . . . . . . 10 4 Behemoth 2 | . . . . . . . . . . . . . . . . . . . 2 . . . . . . . Cetus Guard 8 | . . . . . . . . . . . . . . . . . . . . 8 . . . . . . M Guard 2 | . . . . . . . . . . . . . . . . . . . . . . . . . . 2 Combat Programmer 2 | . . . . . . . . . . . . . . . . . . . . . . . . . . 2 Striker 1 | . . . . . . . . . . . . . . . . . . . . . . . 1 . . . Alpha 7 1 | . . . . . . . . . . . . . . . . . . . . . . . . . . 1 Decomposer 1 | . . . . . . . . . . . . . 1 . . . . . . . . . . . . . Samaritan 2 | . . . . . . . . . . . . 2 . . . . . . . . . . . . . . Revision 1 | . . . . . . . . . . . . . . . . . . . . . . . 1 . . . Best Kill Streak 14 | 5 6 3 . 1 14 11 3 6 3 5 1 4 . 4 3 2 5 5 5 5 3 6 5 6 2 7 Combat Bots Only 11 | . 3 3 . . 9 11 3 6 3 5 1 4 . 4 3 2 4 5 5 4 1 4 5 5 2 6 Max Kills in Single Turn 5 | 1 1 1 . 1 4 3 1 3 2 2 1 3 1 2 2 1 2 1 3 2 1 4 3 5 1 5 Gunslinging 1 | . . . . . . . . . . . . . . . 1 . . . . 1 . . . . . . Exploded 5 | . 1 . . . 3 3 . 3 . 2 . 3 . 2 2 . 2 . 3 . . 3 3 5 . 4 Melee 1 | . . . . . . 1 . . . . . . . . . . . . . . . . . . . . Uniques/NPCs Destroyed . | . . . . . . . . . . . . . . . . . . . . . . . . . . . Combat | -11 -10 -10 -10 -9 -8 -8 -8 -8 -7 -7 -7 -7 -7 -6 -6 -6 -5 -4 -4 -4 -4 -4 -3 -2 -1 -1 -------- Run | Yrd Mat Min Exi Min Mat Gar Mat Gar Fac Gar Fac Low Low Fac Low Low Fac Fac Ext Cet Arc Hub Res Res Acc Com Hostile Shots Fired 2022 | . 68 15 . . 65 61 24 122 141 166 91 21 . 84 83 33 128 67 120 74 37 31 109 108 111 263 Missed 697 | . 15 6 . . 22 20 9 39 58 57 31 6 . 36 27 7 32 26 49 26 15 7 28 46 53 82 Intercepted 3 | . . . . . . . . . . . . . . . . . . . . . . . . . . 3 Hits 1325 | . 53 9 . . 43 41 15 83 83 109 60 15 . 48 56 26 96 41 71 48 22 24 81 62 58 181 Melee 45 | . . . . . . 1 . 4 7 . . . . . . . 1 4 . . . . 13 . . 15 Projectile 1280 | . 53 9 . . 43 40 15 79 76 109 60 15 . 48 56 26 95 37 71 48 22 24 68 62 58 166 AOE 3 | . . . . . . . . . . . . . . . . . . . . . . 1 . . 1 1 Critical Strikes 71 | . . . . . 1 1 1 2 2 1 . . . 1 1 . 9 4 3 10 . 1 11 . 2 21 Part Disruptions 10 | . . . . . . . . 2 . . 1 . . . . . . . . . . . . . . 7 Damage Taken 25878 | . 655 67 . . 497 606 251 1343 1070 1289 537 240 . 475 959 416 1915 945 1461 1262 587 551 2318 1354 1524 5556 Core 2972 | . 159 17 . . 70 57 36 58 174 136 130 34 . 51 71 39 205 119 204 91 30 40 240 55 120 836 Absorbed by Shields 56 | . . . . . . . . . . . . . . . . . 48 . 8 . . . . . . . Reduced by Siege Mode 157 | . . . . . . . . . . . . . . . . . . . . 40 . 22 . . . 95 Regen/Repaired (Parts) 710 | . . . . . . . 107 . . 113 62 . . . . . . 286 . . . . . . . 142 Core Remaining (%) 65 | 100 . . . 29 . . . 59 . . . . 32 . . 81 79 . . . . 57 81 96 . 40 Volleys Fired 1196 | 40 84 12 . 1 38 45 40 49 39 82 28 17 12 28 39 4 125 85 93 17 46 22 52 48 90 60 Largest 3 | 2 2 2 . 2 3 3 3 3 3 3 3 3 3 3 3 3 3 3 3 3 3 3 3 3 3 3 Hottest 346 | 40 60 40 . 40 148 180 180 180 188 201 201 201 201 228 228 212 256 259 257 257 195 240 289 308 279 346 Shots Fired 2475 | 76 167 24 . 2 84 96 103 103 96 151 66 35 17 74 64 12 245 162 204 46 112 48 110 96 168 114 Gun 1210 | 76 166 24 . 2 35 6 . . . . . . . 37 41 8 140 78 112 46 112 47 103 52 80 45 Cannon 1155 | . . . . . 42 82 103 94 96 142 66 29 17 32 11 4 103 84 57 . . . . 42 88 63 Launcher 70 | . 1 . . . 7 8 . 9 . 6 . 6 . 5 12 . 2 . 1 . . 1 4 2 . 6 Special 40 | . . . . . . . . . . 3 . . . . . . . . 34 . . . 3 . . . Kinetic 384 | 76 108 24 . 2 33 6 1 . . . . . . . . . 23 . . 21 46 13 25 6 . . Thermal 1969 | . 58 . . . 44 82 102 94 96 142 66 29 17 69 40 12 220 162 169 25 66 34 78 88 168 108 Explosive 70 | . 1 . . . 7 8 . 9 . 6 . 6 . 5 12 . 2 . 1 . . 1 4 2 . 6 Electromagnetic 12 | . . . . . . . . . . . . . . . 12 . . . . . . . . . . . Robot Hit Streak 49 | 10 16 7 . 3 18 16 19 18 33 18 9 19 2 10 9 7 18 22 49 42 25 24 9 19 21 20 Robot Miss Streak 9 | 7 3 3 . . 2 2 2 2 1 5 5 2 3 3 3 2 5 3 3 2 9 3 7 3 2 2 Penetration Max 1 | . . . . . . . . . . . . . . . . . 1 . . 1 . . . . . . Secondary Targets 9 | . . 2 . . . . . . . . . . . . 1 . 1 . . 3 . . 2 . . . Max Gunslinging Chain 2 | . . 1 . . . . . . . . . . . . 1 . 1 . . 2 . . 1 . . . Shots Hit Robots 1374 | 45 96 11 . 2 40 47 63 55 66 71 34 20 2 42 31 8 119 62 160 41 68 29 52 42 93 75 Core Hits 689 | 15 44 7 . 2 41 33 32 35 26 39 12 15 1 19 22 6 66 35 47 22 22 15 25 22 34 52 Critical Kills 14 | . 1 . . . . . . . 1 . . 1 . . . . 2 . 1 2 1 1 1 . . 3 Critical Parts Destroyed 19 | 1 1 . . . . . . . . . . . . . . . 3 1 4 . 3 2 2 2 . . Critical Strikes 52 | 1 2 . . . . . . . 1 . . 1 . 2 3 2 7 3 9 5 4 3 4 2 . 3 Burn 16 | . . . . . . . . . . . . . . 2 2 2 2 2 4 2 . . . . . . Meltdown 5 | . . . . . . . . . 1 . . 1 . . . . . . . . . . . . . 3 Destroy 30 | 1 2 . . . . . . . . . . . . . . . 5 1 5 3 4 3 4 2 . . Corrupt 1 | . . . . . . . . . . . . . . . 1 . . . . . . . . . . . Melee Attacks 22 | . . . . . . . . . 13 . . . . . . . 9 . . . . . . . . . Impact 18 | . . . . . . . . . 9 . . . . . . . 9 . . . . . . . . . Slashing . | . . . . . . . . . . . . . . . . . . . . . . . . . . . Piercing . | . . . . . . . . . . . . . . . . . . . . . . . . . . . Sneak Attacks 3 | . . . . . . . . . 2 . . . . . . . 1 . . . . . . . . . Combat Hostiles 1 | . . . . . . . . . 1 . . . . . . . . . . . . . . . . . Follow-up Attacks . | . . . . . . . . . . . . . . . . . . . . . . . . . . . Damage Inflicted 45509 | 443 1260 110 . 23 1605 1610 1526 2258 1618 2373 900 973 40 1275 1685 161 3418 1970 3775 1114 1936 1194 2308 2401 3606 5927 Guns 18119 | 443 1182 110 . 21 157 69 . . . . . . . 620 543 141 2150 1224 2319 1114 1936 788 1435 907 2058 902 Cannons 15989 | . . . . . 469 958 1526 1360 1614 1733 820 454 40 370 83 20 861 697 1087 . . . . 585 1527 1785 Explosions 11034 | . 77 . . . 972 577 . 895 . 640 . 519 . 272 1059 . 300 . 369 . . 406 873 835 . 3240 Melee 86 | . . . . . . . . . . . . . . . . . 86 . . . . . . . . . Ramming 281 | . 1 . . 2 7 6 . 3 4 . 80 . . 13 . . 21 49 . . . . . 74 21 . Kinetic 3744 | 443 838 110 . 21 129 69 . . . . . . . . . . 221 . . 501 741 224 365 82 . . Thermal 31157 | . 344 . . . 497 958 1526 1360 1614 1733 820 454 40 990 423 161 2790 1921 3492 613 1195 564 1070 1410 3585 3597 Explosive 10038 | . 77 . . . 972 577 . 895 . 640 . 519 . 272 1059 . 300 . 283 . . 406 873 835 . 2330 Electromagnetic 203 | . . . . . . . . . . . . . . . 203 . . . . . . . . . . . Impact 86 | . . . . . . . . . . . . . . . . . 86 . . . . . . . . . Slashing . | . . . . . . . . . . . . . . . . . . . . . . . . . . . Piercing . | . . . . . . . . . . . . . . . . . . . . . . . . . . . Highest Corruption 44 | . 1 1 1 1 1 1 1 4 2 6 7 7 7 2 2 2 9 3 3 3 3 1 . . 14 44 Average Corruption 4 | . 1 1 1 1 1 1 1 2 1 4 6 7 7 1 2 2 6 2 3 3 2 1 . . 9 19 Corruption Purged 12 | . . . . . . . . . . . . . . . . . 9 . . . 3 . . . . . Corruption Blocked . | . . . . . . . . . . . . . . . . . . . . . . . . . . . Effects 395 | . 1 1 7 . 2 9 10 16 15 32 38 27 9 6 15 1 81 26 22 9 4 2 . . 22 40 Message Errors 82 | . . . . . . 2 3 5 6 8 6 8 1 3 1 1 15 5 2 3 . . . . 6 7 Matter Fused 82 | . . . 2 . . 2 3 3 3 5 6 9 4 . 4 . 21 3 8 2 . . . . 1 6 Heat Flow Errors 57 | . 1 . 2 . 2 . 1 1 1 7 6 2 . 2 3 . 11 6 . 1 . 1 . . 3 7 Energy Discharges 43 | . . . 2 . . 1 . 2 1 1 4 5 1 1 3 . 7 4 3 1 . 1 . . 1 5 Parts Rejected 6 | . . . . . . . 1 . . . 1 . . . . . . 2 1 . 1 . . . . . Parts Fused 2 | . . . . . . . . . . 1 . 1 . . . . . . . . . . . . . . Data Loss (minor) 57 | . . . . . . 1 1 2 3 3 9 1 . . 1 . 15 2 5 2 . . . . 6 6 Data Loss (major) 19 | . . . 1 . . . 1 . 1 1 2 1 2 . . . 2 2 1 . 1 . . . 1 3 Misfires 17 | . . . . . . 2 . 1 . 2 . . 1 . 2 . 4 1 1 . 2 . . . 1 . Alerts 12 | . . 1 . . . . . 1 . 1 3 . . . . . 2 1 1 . . . . . 2 . Misdirections 2 | . . . . . . . . . . . . . . . . . . . . . . . . . . 2 Weapon Failures 16 | . . . . . . 1 . 1 . 3 1 . . . 1 . 4 . . . . . . . 1 4 Overload Shots 75 | . . . . . . . . . . . . . . . . . 1 55 . . . 8 10 1 . . Effects 7 | . . . . . . . . . . . . . . . . . . 5 . . . . 2 . . . Energy Bleed 3 | . . . . . . . . . . . . . . . . . . 2 . . . . 1 . . . Heat Surge 2 | . . . . . . . . . . . . . . . . . . 1 . . . . 1 . . . Short Circuit 2 | . . . . . . . . . . . . . . . . . . 2 . . . . . . . . Overflow Damage 939 | . 11 . . . 35 . 15 46 40 71 14 36 11 29 58 . 56 48 39 . . 15 98 80 112 125 Projectiles 445 | . . . . . 32 . 15 40 40 5 14 20 11 29 3 . . 48 23 . . . . 11 112 42 Explosions 421 | . 11 . . . 3 . . 6 . 66 . 16 . . 55 . . . 16 . . 15 98 52 . 83 Melee 73 | . . . . . . . . . . . . . . . . . 56 . . . . . . 17 . . Knockbacks 5 | . . . . . . . . . . . 1 . . . . . 1 1 . . . . . 1 1 . Impact 5 | . . . . . . . . . . . 1 . . . . . 1 1 . . . . . 1 1 . Kinetic . | . . . . . . . . . . . . . . . . . . . . . . . . . . . Secondary . | . . . . . . . . . . . . . . . . . . . . . . . . . . . Self-Inflicted Damage 237 | . 97 . . . 27 . . . . . . . . . 32 . 20 . 20 . . . 41 . . . Shots 6 | . 1 . . . 1 . . . . . . . . . 1 . 1 . 1 . . . 1 . . . Rammed 17 | . 1 . . 2 1 . . 1 1 . 7 . . 2 . . 2 . . . . . . . . . Targets Rammed 28 | . 1 . . 2 1 1 . 1 1 . 8 . . 2 . . 2 4 . . . . . 3 2 . Kicked 9 | . . . . . . . . . . . . . . . . . . 4 . . . . . 3 2 . Crushed 2 | . . . . . . 1 . . . . 1 . . . . . . . . . . . . . . . Highest Temperature 423 | . 121 . 276 . 237 249 96 291 126 316 249 212 84 249 360 . 423 343 342 146 35 306 293 240 206 277 Average Temperature 84 | . 31 . 119 . 46 98 31 88 33 94 64 76 36 95 112 . 116 104 101 62 17 101 50 90 38 95 Received Heat Transfer 3799 | . 108 . . . 135 243 126 495 219 141 120 . . 72 150 . 348 133 308 90 81 66 487 108 81 288 Effects 10 | . . . . . . 2 . . . 2 . . . . 1 . 5 . . . . . . . . . Energy Bleed 3 | . . . . . . 1 . . . . . . . . 1 . 1 . . . . . . . . . Interference 4 | . . . . . . 1 . . . 2 . . . . . . 1 . . . . . . . . . Damage (major) 3 | . . . . . . . . . . . . . . . . . 3 . . . . . . . . . Siege Activations 4 | . . . . . . . . . . . . . . . . . . . . 1 . 1 . . . 2 Total Turns 75 | . . . . . . . . . . . . . . . . . . . . 15 . 43 . . . 17 Longest Duration 43 | . . . . . . . . . . . . . . . . . . . . 15 . 43 . . . 14 Martial Activations . | . . . . . . . . . . . . . . . . . . . . . . . . . . . Shielding Activations . | . . . . . . . . . . . . . . . . . . . . . . . . . . . Robots Disrupted . | . . . . . . . . . . . . . . . . . . . . . . . . . . . Combat Hostiles . | . . . . . . . . . . . . . . . . . . . . . . . . . . . Robots Corrupted 3 | . . . . . . . . . . . . . . . 2 . 1 . . . . . . . . . Combat Hostiles 2 | . . . . . . . . . . . . . . . 2 . . . . . . . . . . . Parts Fried 4 | . . . . . . . . . . . . . . . 1 . 2 . 1 . . . . . . . Impact Corruptions 3 | . . . . . . . . . . . . . . . . . 2 . . . . . . 1 . . Robots Melted 20 | . . . . . . . . . 2 . 1 1 . 3 . . 1 1 3 2 . . . 2 . 4 Combat Hostiles 19 | . . . . . . . . . 2 . 1 . . 3 . . 1 1 3 2 . . . 2 . 4 Parts Melted 143 | . 2 . . . 1 2 4 5 17 13 7 3 . 8 . . 19 10 11 10 5 . 2 3 12 9 Heat Transferred 44137 | . 775 . . . 814 1554 2442 2072 2479 2516 1258 703 74 2192 1198 483 4578 2742 5045 1073 1517 740 1304 1591 3478 3509 Parts Sabotaged . | . . . . . . . . . . . . . . . . . . . . . . . . . . . Parts Stolen . | . . . . . . . . . . . . . . . . . . . . . . . . . . . Parts Stripped . | . . . . . . . . . . . . . . . . . . . . . . . . . . . Power Chain Reactions . | . . . . . . . . . . . . . . . . . . . . . . . . . . . Alert | -11 -10 -10 -10 -9 -8 -8 -8 -8 -7 -7 -7 -7 -7 -6 -6 -6 -5 -4 -4 -4 -4 -4 -3 -2 -1 -1 ------- Run | Yrd Mat Min Exi Min Mat Gar Mat Gar Fac Gar Fac Low Low Fac Low Low Fac Fac Ext Cet Arc Hub Res Res Acc Com Maximum Alert Level 3 | . . . . . 1 3 2 2 1 3 1 . . . . . 1 1 . . . 1 . 1 1 3 Low Security (%) 69 | 100 100 100 . 100 89 . 96 37 88 21 22 . . 100 . . 41 74 100 100 100 82 100 97 75 8 Level 1 20 | . . . . . 10 27 . 32 11 14 77 . . . . . 58 25 . . . 17 . 2 24 26 Level 2 6 | . . . . . . 8 3 29 . 58 . . . . . . . . . . . . . . . 57 Level 3 3 | . . . . . . 64 . . . 6 . . . . . . . . . . . . . . . 7 Level 4 . | . . . . . . . . . . . . . . . . . . . . . . . . . . . Level 5 . | . . . . . . . . . . . . . . . . . . . . . . . . . . . High Security . | . . . . . . . . . . . . . . . . . . . . . . . . . . . Max Security . | . . . . . . . . . . . . . . . . . . . . . . . . . . . Peak Influence 942 | 10 109 100 . 5 360 942 458 514 264 759 398 . . 129 . . 398 234 188 98 84 236 150 203 284 722 Initial 458 | . . 33 . . . 218 458 65 264 30 398 . . . . . 18 184 18 63 . 8 98 50 121 176 Average 160 | 1 58 28 . . 67 668 57 284 77 447 246 . . 16 . . 197 111 71 41 35 91 69 54 123 507 Influence Increases 11724 | 55 606 140 . 5 560 794 397 519 423 839 259 225 . 382 350 50 998 667 764 240 204 389 468 578 730 1082 Destroy 0b10 Robot/C 6380 | . 340 120 . . 320 480 220 380 280 440 120 180 . 200 240 40 500 360 480 160 80 140 260 300 280 460 Destroy 0b10 Robot/NC 455 | 55 60 . . 5 50 . 55 . 5 . 10 5 . 5 . . 45 30 25 10 25 10 . 15 20 25 Destroy Leader 1122 | . 78 20 . . 66 20 84 30 80 30 62 40 . 72 20 10 134 70 42 . . 20 40 52 82 70 Allied During Kill 253 | . . . . . . 62 . . . 3 . . . . . . . . 117 62 9 . . . . . Successful Hack 576 | . 36 . . . 61 42 23 14 29 12 15 . . 26 . . 61 13 3 . . . 18 40 150 33 Select Force Hacks 30 | . 30 . . . . . . . . . . . . . . . . . . . . . . . . . Disable Machine 390 | . 30 . . . 15 . . . 15 30 15 . . 30 . . 105 30 15 . 60 15 15 . 15 . Anti-Garrison Action 350 | . . . . . . 100 . . . 200 . . . . . . . . . . . . . . . 50 Destroy Structure 1598 | . 32 . . . 48 45 15 65 14 79 7 . . 49 . . 138 104 52 8 30 84 120 171 153 384 Partial Spotted 45 | . . . . . . . . . . . 30 . . . . . . . . . . 15 . . . . Lose Combat Pursuer 525 | . . . . . . 45 . 30 . 45 . . . . 90 . 15 60 30 . . 105 15 . 30 60 Influence Decreases 11168 | 55 521 155 70 5 224 188 1239 115 883 124 825 418 . 302 426 24 652 1004 689 354 180 225 566 465 658 801 Entered New Map 2081 | . . 52 70 . . 118 484 35 240 14 361 72 . . 30 2 12 192 21 51 . 16 90 40 82 99 Time Decay 7000 | 55 501 103 . 5 224 . 455 . 591 . 464 346 . 179 356 20 450 544 462 213 134 209 426 355 546 362 Lost Part 862 | . 20 . . . . 10 . 80 50 60 . . . . 40 2 40 . 30 50 . . 50 60 30 340 Lost Ally 422 | . . . . . . 60 . . 2 50 . . . . . . . 38 176 40 46 . . 10 . . Purge Threat 803 | . . . . . . . 300 . . . . . . 123 . . 150 230 . . . . . . . . Squads Dispatched 60 | . 5 . . . 3 . 2 . 6 . 3 . . 4 . . 5 6 3 . . 2 8 3 6 4 Investigation 15 | . 4 . . . . . . . . . . . . . . . . 1 2 . . . 6 . 2 . Extermination 25 | . . . . . . . . . 4 . 2 . . 3 . . 5 3 . . . . . 2 4 2 Reinforcement 18 | . 1 . . . 3 . 2 . 2 . 1 . . 1 . . . 2 1 . . 2 2 1 . . Assault 2 | . . . . . . . . . . . . . . . . . . . . . . . . . . 2 Garrison . | . . . . . . . . . . . . . . . . . . . . . . . . . . . Intercept . | . . . . . . . . . . . . . . . . . . . . . . . . . . . Searches Triggered . | . . . . . . . . . . . . . . . . . . . . . . . . . . . Construction Impeded 1 | . . . . . 1 . . . . . . . . . . . . . . . . . . . . . Haulers Reinforced 1 | . . . . . . . . . . . . . . . . . . . . . . . 1 . . . Active Scanning Responses . | . . . . . . . . . . . . . . . . . . . . . . . . . . . Cargo Convoy Interrupts 1 | . . . . . . . . . . . 1 . . . . . . . . . . . . . . . Stealth | -11 -10 -10 -10 -9 -8 -8 -8 -8 -7 -7 -7 -7 -7 -6 -6 -6 -5 -4 -4 -4 -4 -4 -3 -2 -1 -1 --------- Run | Yrd Mat Min Exi Min Mat Gar Mat Gar Fac Gar Fac Low Low Fac Low Low Fac Fac Ext Cet Arc Hub Res Res Acc Com Distress Signals 27 | . 1 . . . 1 . 3 . 1 . . . . . . . 1 2 3 2 . 1 8 4 . . Communications Jammed 24 | . . . . . . . . . . . . . . 2 . . . 1 2 . . . . 2 13 4 Distress Signals 24 | . . . . . . . . . . . . . . 2 . . . 1 2 . . . . 2 13 4 Times Spotted 440 | . 28 6 . . 24 26 16 22 21 21 8 6 . 12 17 2 35 25 27 9 14 14 26 21 25 35 Peak Tracking Total 9 | . 4 3 . . 9 7 3 9 3 4 2 3 . 4 4 2 6 5 7 5 1 4 6 6 5 7 Tactical Retreats 33 | . . . . . . 1 . 2 . 3 . . . . 6 . 1 3 1 . . 3 2 3 2 6 ECM-based Alert Blocks 14 | . . . . . . . . . . . . . . . . . . . . . . . . 5 5 4 Traps | -11 -10 -10 -10 -9 -8 -8 -8 -8 -7 -7 -7 -7 -7 -6 -6 -6 -5 -4 -4 -4 -4 -4 -3 -2 -1 -1 ------- Run | Yrd Mat Min Exi Min Mat Gar Mat Gar Fac Gar Fac Low Low Fac Low Low Fac Fac Ext Cet Arc Hub Res Res Acc Com Traps Triggered 22 | . 6 . . . 1 . 1 . 1 2 1 . . 1 . . 3 4 . . . . . . 2 . Indirectly . | . . . . . . . . . . . . . . . . . . . . . . . . . . . Trap Hack Attempts . | . . . . . . . . . . . . . . . . . . . . . . . . . . . Triggered . | . . . . . . . . . . . . . . . . . . . . . . . . . . . Disarmed . | . . . . . . . . . . . . . . . . . . . . . . . . . . . Reprogrammed . | . . . . . . . . . . . . . . . . . . . . . . . . . . . Reused . | . . . . . . . . . . . . . . . . . . . . . . . . . . . Traps Extracted . | . . . . . . . . . . . . . . . . . . . . . . . . . . . Installed . | . . . . . . . . . . . . . . . . . . . . . . . . . . . Triggered . | . . . . . . . . . . . . . . . . . . . . . . . . . . . Machines | -11 -10 -10 -10 -9 -8 -8 -8 -8 -7 -7 -7 -7 -7 -6 -6 -6 -5 -4 -4 -4 -4 -4 -3 -2 -1 -1 ---------- Run | Yrd Mat Min Exi Min Mat Gar Mat Gar Fac Gar Fac Low Low Fac Low Low Fac Fac Ext Cet Arc Hub Res Res Acc Com Machines Disabled 33 | . 2 . . . 1 2 . . 1 4 1 . . 2 1 . 7 2 1 . 4 1 1 . 1 2 Max in Single Turn 2 | . 2 . . . 1 1 . . 1 1 1 . . 2 1 . 1 1 1 . 1 1 1 . 1 2 Garrison Access 9 | . . . . . . . . . . . 1 . . . . . 3 2 . . . . . 1 2 . Garrison Relay 4 | . . . . . . 2 . . . 2 . . . . . . . . . . . . . . . . Phase Generator 1 | . . . . . . . . . . . . . . . . . . . . . . . . . . 1 Network Hub 1 | . . . . . . . . . . . . . . . . . . . . . . 1 . . . . Energy Cycler 2 | . . . . . . . . . . . . . . . . . . . 2 . . . . . . . Machines Repaired . | . . . . . . . . . . . . . . . . . . . . . . . . . . . Machines Dismantled . | . . . . . . . . . . . . . . . . . . . . . . . . . . . Machines Sabotaged . | . . . . . . . . . . . . . . . . . . . . . . . . . . . Overloaded Fab Kills . | . . . . . . . . . . . . . . . . . . . . . . . . . . . Hacking | -11 -10 -10 -10 -9 -8 -8 -8 -8 -7 -7 -7 -7 -7 -6 -6 -6 -5 -4 -4 -4 -4 -4 -3 -2 -1 -1 --------- Run | Yrd Mat Min Exi Min Mat Gar Mat Gar Fac Gar Fac Low Low Fac Low Low Fac Fac Ext Cet Arc Hub Res Res Acc Com Machines Accessed 130 | . 7 . 2 . 9 4 11 2 10 1 5 . . 7 1 . 14 18 6 1 . 2 5 4 18 3 Terminals 79 | . 6 . . . 6 4 8 2 6 1 1 . . 6 1 . 5 8 6 1 . 2 3 1 11 1 Fabricators 12 | . . . . . . . . . 2 . 1 . . . . . 2 3 . . . . . 1 3 . Repair Stations 12 | . . . . . 1 . 1 . 1 . 1 . . . . . 1 4 . . . . . . 1 2 Recycling Units 1 | . 1 . . . . . . . . . . . . . . . . . . . . . . . . . Scanalyzers 12 | . . . . . 1 . 1 . . . 1 . . 1 . . 3 1 . . . . 2 1 1 . Garrison Access 12 | . . . . . 1 . 1 . 1 . 1 . . . . . 3 2 . . . . . 1 2 . Total Hacks 340 | . 27 . 2 . 26 6 30 3 30 3 13 . . 21 7 . 36 46 15 1 . 5 9 14 41 5 Successful 206 | . 18 . 2 . 18 3 17 1 17 1 10 . . 12 7 . 21 33 6 . . 2 6 9 20 3 Failed 129 | . 9 . . . 7 3 12 2 13 2 3 . . 8 . . 15 12 9 1 . 3 2 5 21 2 Catastrophic 18 | . 1 . . . 1 1 1 1 2 1 . . . 2 . . 2 2 . 1 . 1 . 1 1 . Database Lockouts 5 | . . . . . 1 . 1 . . . . . . 1 . . . 1 . . . . 1 . . . Manual 131 | . 24 . 1 . 13 . 13 . 16 2 3 . . 10 . . 13 11 4 . . 3 2 7 9 . Terminals 228 | . 26 . . . 19 6 22 3 21 3 5 . . 15 7 . 20 21 15 1 . 5 5 7 26 1 Fabricators 21 | . . . . . . . . . 6 . 1 . . . . . 2 5 . . . . . 2 5 . Repair Stations 31 | . . . . . 1 . 3 . 1 . 4 . . . . . 3 12 . . . . . . 3 4 Recycling Units 1 | . 1 . . . . . . . . . . . . . . . . . . . . . . . . . Scanalyzers 42 | . . . . . 5 . 3 . . . 2 . . 6 . . 7 6 . . . . 4 4 5 . Garrison Access 15 | . . . . . 1 . 2 . 2 . 1 . . . . . 4 2 . . . . . 1 2 . Terminal Hacks 80 | . 8 . 2 . 7 3 7 1 5 1 1 . . 5 7 . 7 10 4 . . 1 1 1 8 1 Record 10 | . . . 1 . 1 . . . . . . . . . 7 . . 1 . . . . . . . . Part Schematic 1 | . . . . . . . . . . . . . . . . . . 1 . . . . . . . . Robot Analysis 3 | . 2 . . . . . 1 . . . . . . . . . . . . . . . . . . . Prototype ID Bank 7 | . 4 . . . . . 1 . 1 . . . . . . . 1 . . . . . . . . . Open Door 8 | . . . . . . . . . . . . . . . . . . 1 3 . . . . . 3 1 Level Access Points 2 | . . . . . . . . . . . . . . . . . . . . . . 1 . 1 . . Branch Access Points 4 | . . . . . 1 . . . . . . . . 1 . . . 1 . . . . . . 1 . Emergency Access Points 3 | . . . . . . 1 . . 1 . . . . . . . . 1 . . . . . . . . Machine Index 1 | . . . . . . . . . . . . . . . . . . . . . . . . . 1 . Terminal Index 6 | . 1 . . . 1 . . . 1 . . . . 1 . . 1 . . . . . . . 1 . Fabricator Index 1 | . . . . . . . . . . . . . . . . . 1 . . . . . . . . . Scanalyzer Index 1 | . . . . . . . . . . . . . . . . . 1 . . . . . . . . . Garrison Index 1 | . . . . . 1 . . . . . . . . . . . . . . . . . . . . . Alert Level 1 | . . . . . 1 . . . . . . . . . . . . . . . . . . . . . Unreport Threat 6 | . . . . . . . 2 . . . . . . 1 . . 1 2 . . . . . . . . Locate Traps 1 | . . . . . . . . . . . . . . . . . . . 1 . . . . . . . Security Status 3 | . . . . . 1 . . . . . . . . . . . 1 1 . . . . . . . . Recall Extermination 2 | . . . . . . . . . 1 . . . . . . . . 1 . . . . . . . . Hauler Manifests 1 | . . . . . . . . . . . . . . 1 . . . . . . . . . . . . Registered Components 8 | . 1 . . . . . 1 . . . 1 . . 1 . . 1 1 . . . . 1 . 1 . Registered Prototypes 3 | . . . . . 1 . 1 . . . . . . . . . . . . . . . . . 1 . Zone Layout 2 | . . . . . . . 1 . 1 . . . . . . . . . . . . . . . . . Garrison Registry 2 | . . . . . . 1 . 1 . . . . . . . . . . . . . . . . . . Patrol Navigation 1 | . . . . . . . . . . 1 . . . . . . . . . . . . . . . . Security Stations 1 | . . . . . . 1 . . . . . . . . . . . . . . . . . . . . Proto ID Catalog 1 | . . . 1 . . . . . . . . . . . . . . . . . . . . . . . Fabricator Hacks 9 | . . . . . . . . . 2 . 1 . . . . . 2 2 . . . . . 1 1 . Network Status 6 | . . . . . . . . . 2 . 1 . . . . . . 1 . . . . . 1 1 . Load Schematic 1 | . . . . . . . . . . . . . . . . . . 1 . . . . . . . . Build 2 | . . . . . . . . . . . . . . . . . 2 . . . . . . . . . Repair Station Hacks 17 | . . . . . . . 2 . . . 2 . . . . . 1 9 . . . . . . 1 2 Scan Component 10 | . . . . . . . 1 . . . 1 . . . . . 1 5 . . . . . . 1 1 Repair 7 | . . . . . . . 1 . . . 1 . . . . . . 4 . . . . . . . 1 Recycling Unit Hacks . | . . . . . . . . . . . . . . . . . . . . . . . . . . . Scanalyzer 32 | . . . . . 4 . 2 . . . 2 . . 5 . . 4 5 . . . . 3 4 3 . Insert Component 4 | . . . . . . . 1 . . . . . . 1 . . . 1 . . . . 1 . . . Analyze 5 | . . . . . . . 1 . . . . . . 2 . . . 1 . . . . 1 . . . Retrieve Study 23 | . . . . . 4 . . . . . 2 . . 2 . . 4 3 . . . . 1 4 3 . Garrison Access Hacks 15 | . . . . . 1 . 2 . 2 . 1 . . . . . 4 2 . . . . . 1 2 . Unlock Access 3 | . . . . . 1 . 1 . 1 . . . . . . . . . . . . . . . . . Seal Access 9 | . . . . . . . . . . . 1 . . . . . 3 2 . . . . . 1 2 . Coupler Status 3 | . . . . . . . 1 . 1 . . . . . . . 1 . . . . . . . . . Unauthorized Hacks 52 | . 10 . . . 5 . 4 . 8 . 3 . . 2 . . 3 5 2 . . 1 2 2 5 . Terminals 44 | . 9 . . . 4 . 4 . 6 . 2 . . 2 . . 3 2 2 . . 1 2 2 5 . Assimilate 5 | . . . . . . . . . 3 . 1 . . . . . . . . . . . . 1 . . Botnet 30 | . 4 . . . 3 . 3 . 2 . 1 . . 2 . . 2 2 2 . . 1 2 1 5 . Operators 3 | . . . . . . . 1 . 1 . . . . . . . 1 . . . . . . . . . Skim 6 | . 5 . . . 1 . . . . . . . . . . . . . . . . . . . . . Fabricators 5 | . . . . . . . . . 2 . . . . . . . . 3 . . . . . . . . Liberate 4 | . . . . . . . . . 2 . . . . . . . . 2 . . . . . . . . Haulers 1 | . . . . . . . . . . . . . . . . . . 1 . . . . . . . . Repair Stations 2 | . . . . . 1 . . . . . 1 . . . . . . . . . . . . . . . Mechanics 2 | . . . . . 1 . . . . . 1 . . . . . . . . . . . . . . . Recycling Units 1 | . 1 . . . . . . . . . . . . . . . . . . . . . . . . . Tunnel 1 | . 1 . . . . . . . . . . . . . . . . . . . . . . . . . Scanalyzers . | . . . . . . . . . . . . . . . . . . . . . . . . . . . Garrison Access . | . . . . . . . . . . . . . . . . . . . . . . . . . . . Data Cores Recovered . | . . . . . . . . . . . . . . . . . . . . . . . . . . . Used . | . . . . . . . . . . . . . . . . . . . . . . . . . . . Hacking Detections 97 | . 5 . . . 6 4 11 2 9 1 2 . . 7 . . 11 12 6 1 . 2 1 3 12 2 Full Trace Events 4 | . . . . . . . . . . . . . . . . . . 1 2 . . . . . 1 . Feedback Events 1 | . . . . . . . . . . . . . . . . . . . . . . . . . 1 . Hackware Fried 1 | . . . . . . . . . . . . . . . . . . . . . . . . . 1 . Feedback Blocked . | . . . . . . . . . . . . . . . . . . . . . . . . . . . Robot Schematics Acquired . | . . . . . . . . . . . . . . . . . . . . . . . . . . . Robots Built . | . . . . . . . . . . . . . . . . . . . . . . . . . . . Authchips . | . . . . . . . . . . . . . . . . . . . . . . . . . . . Time . | . . . . . . . . . . . . . . . . . . . . . . . . . . . Total Robot Build Rating . | . . . . . . . . . . . . . . . . . . . . . . . . . . . Part Schematics Acquired 3 | . . . . . . . 1 . . . . . . . . . . 2 . . . . . . . . Parts Built 4 | . . . . . . . . . . . . . . . . . 4 . . . . . . . . . Authchips . | . . . . . . . . . . . . . . . . . . . . . . . . . . . Time 116 | . . . . . . . . . . . . . . . . . 116 . . . . . . . . . Total Part Build Rating 28 | . . . . . . . . . . . . . . . . . 28 . . . . . . . . . Part Studies Acquired 23 | . . . . . 4 . . . . . 2 . . 2 . . 4 3 . . . . 1 4 3 . Parts Repaired 7 | . . . . . . . 1 . . . 1 . . . . . . 4 . . . . . . . 1 Time 267 | . . . . . . . 19 . . . 51 . . . . . . 175 . . . . . . . 22 Parts Recycled . | . . . . . . . . . . . . . . . . . . . . . . . . . . . Recycled Matter . | . . . . . . . . . . . . . . . . . . . . . . . . . . . Retrieved Matter . | . . . . . . . . . . . . . . . . . . . . . . . . . . . Retrieved Components . | . . . . . . . . . . . . . . . . . . . . . . . . . . . Parts Scanalyzed 4 | . . . . . . . 1 . . . . . . 1 . . . 1 . . . . 1 . . . Part Schematics Acquired 2 | . . . . . . . 1 . . . . . . . . . . 1 . . . . . . . . Parts Damaged . | . . . . . . . . . . . . . . . . . . . . . . . . . . . Bothacking | -11 -10 -10 -10 -9 -8 -8 -8 -8 -7 -7 -7 -7 -7 -6 -6 -6 -5 -4 -4 -4 -4 -4 -3 -2 -1 -1 ------------ Run | Yrd Mat Min Exi Min Mat Gar Mat Gar Fac Gar Fac Low Low Fac Low Low Fac Fac Ext Cet Arc Hub Res Res Acc Com Used RIF Installer 4 | . . . . . . 1 . 2 . 1 . . . . . . . . . . . . . . . . Hotswap 1 | . . . . . . . . 1 . . . . . . . . . . . . . . . . . . Zone Cloak 1 | . . . . . . . . . . 1 . . . . . . . . . . . . . . . . Patrol Navigation 1 | . . . . . . . . 1 . . . . . . . . . . . . . . . . . . Robots Hacked 9 | . . . . . . . . . 2 1 . . . . . . . . 4 . . . 2 . . . Non-combat 3 | . . . . . . . . . 1 1 . . . . . . . . 1 . . . . . . . Combat 6 | . . . . . . . . . 1 . . . . . . . . . 3 . . . 2 . . . Robot Hacks Applied 18 | . . . . . . . . . 4 1 . . . . . . . . 11 . . . 2 . . . parse_system 6 | . . . . . . . . . 1 . . . . . . . . . 3 . . . 2 . . . generate_echo 1 | . . . . . . . . . . . . . . . . . . . 1 . . . . . . . recall_investigation 1 | . . . . . . . . . . . . . . . . . . . 1 . . . . . . . find_garrison 1 | . . . . . . . . . 1 . . . . . . . . . . . . . . . . . scatter_targeting 2 | . . . . . . . . . . . . . . . . . . . 2 . . . . . . . link_complan 1 | . . . . . . . . . . . . . . . . . . . 1 . . . . . . . spike_heat 4 | . . . . . . . . . 1 . . . . . . . . . 3 . . . . . . . formatsys_low 2 | . . . . . . . . . 1 1 . . . . . . . . . . . . . . . . Relay Couplers Released 21 | . . . . . . 11 . . . 10 . . . . . . . . . . . . . . . . Machine Destruction 18 | . . . . . . 8 . . . 10 . . . . . . . . . . . . . . . . Programmers 3 | . . . . . . 3 . . . . . . . . . . . . . . . . . . . . Attached 5 | . . . . . . . . . 2 1 . . . . . . . . 2 . . . . . . . Fabnet Peak Effective % . | . . . . . . . . . . . . . . . . . . . . . . . . . . . Robots Rewired 17 | . . . . . . 3 . . . 1 . . . . . . . . 13 . . . . . . . Allies Hacked 1 | . . . . . . . . . . 1 . . . . . . . . . . . . . . . . Hacks Repelled . | . . . . . . . . . . . . . . . . . . . . . . . . . . . Allies | -11 -10 -10 -10 -9 -8 -8 -8 -8 -7 -7 -7 -7 -7 -6 -6 -6 -5 -4 -4 -4 -4 -4 -3 -2 -1 -1 -------- Run | Yrd Mat Min Exi Min Mat Gar Mat Gar Fac Gar Fac Low Low Fac Low Low Fac Fac Ext Cet Arc Hub Res Res Acc Com Total Allies 30 | . . . . . . 3 . . 5 2 . . . . . . . 3 16 . . . . 1 . . Largest Group 8 | . . . . . . 3 . . 3 3 . . . . . . . 3 8 5 3 . . 1 . . Highest-Rated Group 319 | . . . . . . 95 . . 48 54 . . . . . . . 141 319 210 116 . . 26 . . Highest-Rated Ally 159 | . . . . . . 39 . . 26 26 . . . . . . . 47 159 51 46 . . 26 . . Total Orders 10 | . . . . . . . . . . 9 . . . . . . . 1 . . . . . . . . STAY 5 | . . . . . . . . . . 5 . . . . . . . . . . . . . . . . FOLLOW 3 | . . . . . . . . . . 3 . . . . . . . . . . . . . . . . AID 1 | . . . . . . . . . . 1 . . . . . . . . . . . . . . . . RETURN 1 | . . . . . . . . . . . . . . . . . . 1 . . . . . . . . Ally Attacks 162 | . . . . . . 26 . . 19 4 . . . . . . . 15 50 37 11 . . . . . Total Damage 3413 | . . . . . . 237 . . 147 119 . . . . . . . 399 1425 846 240 . . . . . Kills 17 | . . . . . . 4 . . . . . . . . . . . 3 8 1 1 . . . . . Allies Corrupted . | . . . . . . . . . . . . . . . . . . . . . . . . . . . Allies Melted 2 | . . . . . . . . . 1 . . . . . . . . . 1 . . . . . . . Intel | -11 -10 -10 -10 -9 -8 -8 -8 -8 -7 -7 -7 -7 -7 -6 -6 -6 -5 -4 -4 -4 -4 -4 -3 -2 -1 -1 ------- Run | Yrd Mat Min Exi Min Mat Gar Mat Gar Fac Gar Fac Low Low Fac Low Low Fac Fac Ext Cet Arc Hub Res Res Acc Com Active Infowar (turns) 20615 | 26 1501 381 509 83 . . . . . 144 1175 921 377 1570 1405 67 3568 1998 1347 516 293 560 1119 859 1571 625 Optics 1 | . . . . . . . . . . . . . . . . . . . . . . . . 1 . . Sensors 1210 | . . . . 1 . . . . . . . 830 377 2 . . . . . . . . . . . . IFF 1471 | . . . . . . . . . . . . . . . 1404 67 . . . . . . . . . . Terrain 3662 | . . . 176 82 . . . . . . . . . . . . . 307 103 . . 315 981 360 961 377 Seismic 2241 | 26 1501 381 333 . . . . . . . . . . . . . . . . . . . . . . . Machine Analysis 11908 | . . . . . . . . . . . . . . . . . 3567 1998 1347 516 293 560 1119 859 1571 78 Cloaking 3196 | . . . . . . . . . . . . . . . . . . 376 59 . . . 212 766 1550 233 Jamming 11584 | . . . . . . . . . . 144 1175 91 . 1568 1 . 3074 1457 749 . . . 393 736 1571 625 ECM 219 | . . . . . . . . . . . 1 . . . . . . . . . . . . 143 44 31 Robot Analysis Total 3 | . 2 . . . . . 1 . . . . . . . . . . . . . . . . . . . Derelict Logs Recovered 4 | . . . . 1 . . . . . . . 2 . . 1 . . . . . . . . . . . Drone Launches 1 | . . . . . . . . . . . . . . . . . . 1 . . . . . . . . Drone Recoveries 1 | . . . . . . . . . . . . . . . . . . 1 . . . . . . . . Exploration | -11 -10 -10 -10 -9 -8 -8 -8 -8 -7 -7 -7 -7 -7 -6 -6 -6 -5 -4 -4 -4 -4 -4 -3 -2 -1 -1 ------------- Run | Yrd Mat Min Exi Min Mat Gar Mat Gar Fac Gar Fac Low Low Fac Low Low Fac Fac Ext Cet Arc Hub Res Res Acc Com Turns Passed 29235 | 312 1501 381 734 330 932 1159 1717 743 1952 1277 1175 921 377 1583 1414 67 3574 1998 1347 516 293 560 1119 859 1571 823 Spaces Moved 15609 | 119 603 217 327 131 412 605 907 347 955 591 559 525 212 829 769 27 1728 1361 778 228 81 198 837 600 1179 484 Core 53 | 5 . . . . . . . . . . . . . . . . . . . . . . . . . 48 Treads 9799 | 114 603 217 327 131 412 605 907 347 393 558 559 525 212 829 769 27 1728 . . 184 81 195 76 . . . Legs 5162 | . . . . . . . . . . . . . . . . . . 1361 778 44 . 3 761 600 1179 436 Wheels 595 | . . . . . . . . . 562 33 . . . . . . . . . . . . . . . . Hover . | . . . . . . . . . . . . . . . . . . . . . . . . . . . Flight . | . . . . . . . . . . . . . . . . . . . . . . . . . . . Fastest Speed 50 | 50 160 160 160 240 160 160 156 158 130 130 162 162 162 162 162 162 160 87 87 99 160 160 88 93 93 50 Average Speed 141 | 155 160 160 221 240 160 160 156 159 172 161 162 162 162 162 162 164 163 98 93 150 160 160 97 94 96 94 Slowest Speed 250 | 160 160 160 240 240 160 160 160 161 246 165 165 162 162 243 162 165 245 112 99 240 160 250 160 100 100 170 Overloaded Moves . | . . . . . . . . . . . . . . . . . . . . . . . . . . . Propulsion Burnouts . | . . . . . . . . . . . . . . . . . . . . . . . . . . . Robots Hopped . | . . . . . . . . . . . . . . . . . . . . . . . . . . . Potential Cave-ins 12 | . . . . . . . . . . . . . . . . . 5 4 . . . . . . . 3 Cave-ins Triggered . | . . . . . . . . . . . . . . . . . . . . . . . . . . . Exploration Rate (%) 44 | 5 84 41 69 35 43 82 85 46 20 67 15 64 26 25 72 5 42 38 89 64 76 26 22 20 34 19 Regions Visited 26 Branch Regions 12 Pre-discovered Areas 5 | . 3 . 1 . . . . . . . . . . . 1 . . . . . . . . . . . Known Exits Taken 11 | . . . . . 1 . 1 . 1 . 1 1 1 1 . . 1 1 . . . 1 . 1 . . Unknown Exits Taken 12 | 1 1 1 1 1 . . . . . . . . . . 1 1 . . 1 1 1 . 1 . 1 . Scrap Searched 8 | . . 1 . . . . . . . . . 4 1 . 2 . . . . . . . . . . . Spaces Dug 381 | . . . . . 5 . 2 13 9 . 4 60 2 40 27 . 38 32 . . . 6 68 39 32 4 Terrain Destroyed 1058 | . 40 . . . 45 22 10 34 11 20 5 75 3 60 145 . 82 53 31 2 17 44 77 59 51 172 Melee 15 | . . . . . . . . . 7 . . . . . . . 8 . . . . . . . . . Projectile 307 | . . . . . 7 . 10 . 4 . 5 1 3 . 3 . 62 53 8 2 17 15 18 30 51 18 AOE 736 | . 40 . . . 38 22 . 34 . 20 . 74 . 60 142 . 12 . 23 . . 29 59 29 . 154 Terrain Rammed . | . . . . . . . . . . . . . . . . . . . . . . . . . . . Walls Destroyed . | . . . . . . . . . . . . . . . . . . . . . . . . . . . Machines Disabled . | . . . . . . . . . . . . . . . . . . . . . . . . . . . Actions | -11 -10 -10 -10 -9 -8 -8 -8 -8 -7 -7 -7 -7 -7 -6 -6 -6 -5 -4 -4 -4 -4 -4 -3 -2 -1 -1 --------- Run | Yrd Mat Min Exi Min Mat Gar Mat Gar Fac Gar Fac Low Low Fac Low Low Fac Fac Ext Cet Arc Hub Res Res Acc Com Total 20715 | 173 977 229 340 143 625 727 1147 447 1169 791 770 563 231 1013 879 41 2293 1893 1270 381 160 401 1053 811 1467 721 Wait 2473 | 2 263 . 5 3 122 16 103 29 81 58 144 13 5 97 46 5 269 312 305 68 17 157 47 90 102 114 Move 15586 | 118 602 216 326 130 412 604 907 346 955 590 558 524 211 828 768 26 1727 1360 777 227 80 197 836 599 1178 484 Hop . | . . . . . . . . . . . . . . . . . . . . . . . . . . . Pick Up 266 | 3 14 1 . 2 17 10 21 6 13 17 6 . 1 10 5 1 37 21 16 13 4 6 14 9 14 5 Fast Attach 173 | 8 1 . 1 1 . . 16 2 9 3 5 . . 11 2 . 16 25 7 7 3 4 21 14 9 8 Attach 106 | . 1 . 1 2 6 1 . 5 6 7 . . . 2 4 3 8 6 7 3 1 2 10 7 5 19 Detach 29 | . . . 3 1 . . . . . . . . . . . 1 1 3 2 . 1 . 4 4 1 8 Swap 396 | 1 6 . 1 . 16 16 16 7 27 17 8 9 1 13 10 1 42 34 40 17 3 5 31 20 39 16 Drop 418 | 1 5 . 3 1 13 17 44 2 21 17 13 . 1 22 5 . 57 43 23 29 5 8 38 17 27 6 Fire 1196 | 40 84 12 . 1 38 45 40 49 39 82 28 17 12 28 39 4 125 85 93 17 46 22 52 48 90 60 Melee 22 | . . . . . . . . . 13 . . . . . . . 9 . . . . . . . . . Ram 1 | . . . . . . . . . . . . . . . . . . . . . . . . . . 1 Kick 9 | . . . . . . . . . . . . . . . . . . 4 . . . . . 3 2 . Crush 19 | . 1 . . 2 1 1 . 1 1 . 8 . . 2 . . 2 . . . . . . . . . Escape Stasis . | . . . . . . . . . . . . . . . . . . . . . . . . . . . Rewire 21 | . . . . . . 17 . . 4 . . . . . . . . . . . . . . . . . Trap . | . . . . . . . . . . . . . . . . . . . . . . . . . . . Miscellaneous . | . . . . . . . . . . . . . . . . . . . . . . . . . . . Route ------- -11/Scrapyard -10/Materials (discovered 3 exits: *Mat x2 / [*Min]) -10/Mines (discovered 4 exits: *Mat x2 / *Exi / Sub) -10/Exiles -9/Mines -8/Materials (discovered 2 exits: *Fac / Gar) -8/Garrison (discovered 4 exits: *Mat x4) -8/Materials (discovered 4 exits: *Fac x3 / Gar) -8/Garrison (discovered 3 exits: *Fac x3) -7/Factory (discovered 4 exits: *Fac x2 / *Low / Gar) -7/Garrison (discovered 2 exits: *Fac x2) -7/Factory -7/Lower Caves -7/Lower Caves -6/Factory (discovered 3 exits: *Fac / *Low x2) -6/Lower Caves -6/Lower Caves -5/Factory (discovered 4 exits: *Fac x2 / *Upp x2) -4/Factory (discovered 6 exits: *Res x2 / *Upp x2 / *Ext x2) -4/Extension (discovered 3 exits: *Res x2 / *Cet) -4/Cetus (discovered 2 exits: *Res / [*Arc]) -4/Archives (discovered 2 exits: *Res / *Hub) -4/Hub_04(d) (discovered 4 exits: *Res x4) -3/Research (discovered 2 exits: *Res / *Tes) -2/Research -1/Access (discovered 2 exits: [Sur] / *Com) -1/Command 0b10 Command History --------- Turn | Location | Event 9 | -11/Scrapyard | Discovered new exit (range 15) 313 | -11/Scrapyard | Entered Materials 314 | -10/Materials | Build established: Mutant 688 | -10/Materials | Discovered new exit (range 14) 845 | -10/Materials | Discovered new exit (range 3) 1010 | -10/Materials | Learned 2 Mines zone layouts 1055 | -10/Materials | Learned Storage stockpile data 1090 | -10/Materials | Learned Storage garrison access intel 1114 | -10/Materials | Learned location of Storage (-7) 1127 | -10/Materials | Learned location of 2 exits from Mines 1185 | -10/Materials | Learned location of 1 exit from Recycling 1452 | -10/Materials | Discovered new exit (range 11) 1494 | -10/Materials | Core integrity fell below 50% 1814 | -10/Materials | Entered Mines 1815 | -10/Mines | Identified exit to Subcaves 1815 | -10/Mines | Identified exit to Materials 2188 | -10/Mines | Deemed a non-threat by the Exiles lab entrance 2188 | -10/Mines | Discovered new exit (range 5) 2195 | -10/Mines | Entered Exiles 2239 | -10/Exiles | Met 8R-AWN 2261 | -10/Exiles | Met EX-HEX 2355 | -10/Exiles | Met EX-DEC 2393 | -10/Exiles | Learned location of Zion (-7) 2432 | -10/Exiles | Met EX-BIN 2468 | -10/Exiles | Aligned with FarCom system 2470 | -10/Exiles | Given EX-Vault access code 2529 | -10/Exiles | Opened EX-Vault 2546 | -10/Exiles | Found YOLO Cannon 2594 | -10/Exiles | Warned to stay clear of 0b10 Research branches 2902 | -10/Exiles | Discovered new exit (range 14) 2929 | -10/Exiles | Left Exiles lab with YOLO Cannon 2929 | -10/Exiles | Entered Mines 3006 | -9/Mines | Found a damaged Exp. Sensor Array with a note attached 3012 | -9/Mines | Found Prototype Device 3012 | -9/Mines | Identified Exp. Sensor Array 3059 | -9/Mines | YI-UF0 nonchalantly dropped a Grenade Launcher on the ground 3194 | -9/Mines | Discovered new exit (range 7) 3211 | -9/Mines | Learned Materials stockpile data 3259 | -9/Mines | Entered Materials 3259 | -8/Materials | Evolved 4 slots: Propulsion x2, Utility x1, Weapon x1 3727 | -8/Materials | Discovered new exit (range 4) 3759 | -8/Materials | Build established: Skirmisher 3822 | -8/Materials | Central database locked down 4126 | -8/Materials | Destroyed 9 combat bots 4191 | -8/Materials | Identified exit to Garrison 4191 | -8/Materials | Entered Garrison 4417 | -8/Garrison | Triggered checkpoint 4497 | -8/Garrison | Learned Materials security intel 4507 | -8/Garrison | Garrison Relay disabled 4571 | -8/Garrison | Build established: Scavenger-Skirmisher 4575 | -8/Garrison | Triggered checkpoint 4632 | -8/Garrison | Destroyed 11 combat bots 4639 | -8/Garrison | Triggered checkpoint 4673 | -8/Garrison | Triggered checkpoint 4767 | -8/Garrison | Triggered checkpoint 4800 | -8/Garrison | Garrison Relay disabled 4861 | -8/Garrison | Discovered new exit (range 12) 5050 | -8/Garrison | Discovered new exit (range 15) 5074 | -8/Garrison | Discovered new exit (range 67) 5074 | -8/Garrison | Discovered new exit (range 7) 5074 | -8/Garrison | Discovered new exit (range 36) 5074 | -8/Garrison | Discovered new exit (range 79) 5198 | -8/Garrison | Installed Relay Interface Framework 5339 | -8/Garrison | Triggered checkpoint 5350 | -8/Garrison | Entered Materials 5703 | -8/Materials | Met 7R-MNS 5856 | -8/Materials | Discovered new exit (range 8) 6296 | -8/Materials | Discovered new exit (range 14) 6645 | -8/Materials | Repaired Ion Cannon+ 6845 | -8/Materials | Central database locked down 6965 | -8/Materials | Discovered new exit (range 15) 7067 | -8/Materials | Identified exit to Garrison 7067 | -8/Materials | Entered Garrison 7167 | -8/Garrison | Triggered checkpoint 7206 | -8/Garrison | Discovered new exit (range 72) 7206 | -8/Garrison | Discovered new exit (range 78) 7206 | -8/Garrison | Discovered new exit (range 41) 7249 | -8/Garrison | Expanded RIF knowledge: Patrol Navigation 7300 | -8/Garrison | Triggered checkpoint 7301 | -8/Garrison | Build established: Skirmisher 7442 | -8/Garrison | Lost 7 parts (1p2n2u2w) 7689 | -8/Garrison | Expanded RIF knowledge: Hotswap 7789 | -8/Garrison | Triggered checkpoint 7810 | -8/Garrison | Entered Factory 7810 | -7/Factory | Evolved 2 slots: Utility x2 8057 | -7/Factory | Discovered new exit (range 9) 8136 | -7/Factory | Build established: Scavenger-Skirmisher 8235 | -7/Factory | Identified exit to Factory 8412 | -7/Factory | Discovered new exit (range 7) 8424 | -7/Factory | Identified exit to Lower Caves 9210 | -7/Factory | Lost 3 allies 9264 | -7/Factory | Discovered exit to Factory (range 13) 9490 | -7/Factory | Build established: Skirmisher 9761 | -7/Factory | Identified exit to Garrison 9762 | -7/Factory | Entered Garrison 9762 | -7/Garrison | Accompanied by 2 allies 10034 | -7/Garrison | Triggered checkpoint 10172 | -7/Garrison | Triggered checkpoint 10200 | -7/Garrison | Triggered checkpoint 10278 | -7/Garrison | Triggered checkpoint 10351 | -7/Garrison | Discovered new exit (range 8) 10439 | -7/Garrison | Expanded RIF knowledge: Zone Cloak 10468 | -7/Garrison | Triggered checkpoint 10480 | -7/Garrison | Garrison Relay disabled 10592 | -7/Garrison | Lost 3 parts (1p1n1w) 10663 | -7/Garrison | Discovered new exit (range 10) 10793 | -7/Garrison | Build established: Bothacker-Skirmisher 11039 | -7/Garrison | Entered Factory 11216 | -7/Factory | Build established: Scavenger-Skirmisher 11437 | -7/Factory | Repaired Adv. Beam Cannon 11475 | -7/Factory | Core integrity fell below 50% 11747 | -7/Factory | Build established: Skirmisher 11840 | -7/Factory | Watched by a mysterious "MATRIX" hacker. 12010 | -7/Factory | Cargo convoy interrupted 12175 | -7/Factory | Discovered exit to Lower Caves (range 8) 12214 | -7/Factory | Entered Lower Caves 12395 | -7/Lower Caves | Learned Factory security intel 12456 | -7/Lower Caves | Identified exit to Lower Caves 12496 | -7/Lower Caves | Build established: Gunner 13135 | -7/Lower Caves | Entered another Lower Caves area 13226 | -7/Lower Caves | Discovered exit to Factory (range 16) 13512 | -7/Lower Caves | Entered Factory 13512 | -6/Factory | Evolved 2 slots: Utility x2 13691 | -6/Factory | Identified exit to Lower Caves 13812 | -6/Factory | Build established: Skirmisher 14112 | -6/Factory | Central database locked down 14386 | -6/Factory | Discovered new exit (range 14) 15095 | -6/Factory | Entered Lower Caves 15233 | -6/Lower Caves | Attracted the attention of an 0b10 checkpoint 15392 | -6/Lower Caves | Build established: Gunner 15582 | -6/Lower Caves | Attracted the attention of an 0b10 base 15699 | -6/Lower Caves | Learned location of 2 exits from Upper Caves 15699 | -6/Lower Caves | Learned location of 1 exit from Factory 15699 | -6/Lower Caves | Learned Armory emergency access door positions 15699 | -6/Lower Caves | Learned Extension security intel 16476 | -6/Lower Caves | Discovered new exit (range 9) 16490 | -6/Lower Caves | Spotted B-75 Beast 16509 | -6/Lower Caves | Entered another Lower Caves area 16511 | -6/Lower Caves | Discovered new exit (range 12) 16556 | -6/Lower Caves | Lost 4 parts (1n1u2w) 16576 | -6/Lower Caves | Entered Factory 16576 | -5/Factory | Evolved 2 slots: Power x1, Utility x1 16577 | -5/Factory | Identified exit to Upper Caves 16578 | -5/Factory | Identified exit to Factory 16870 | -5/Factory | Build established: Skirmisher 18402 | -5/Factory | Fabricated Matter Neutralizer? 18563 | -5/Factory | Build established: Scavenger-Tank 18796 | -5/Factory | Fabricated Myomer Leg? 19946 | -5/Factory | Discovered exit to Factory (range 12) 20150 | -5/Factory | Entered another Factory area 20150 | -4/Factory | Evolved 2 slots: Propulsion x1, Utility x1 20463 | -4/Factory | Build established: Hacker-Skirmisher 20526 | -4/Factory | Discovered new exit (range 13) 20541 | -4/Factory | Identified exit to Upper Caves 20889 | -4/Factory | Found Prototype Processor 20889 | -4/Factory | Identified Exp. Terrain Scan Processor 20938 | -4/Factory | Central database locked down 21349 | -4/Factory | Discovered new exit (range 8) 21579 | -4/Factory | Repaired Imp. VSS Leg+ 21608 | -4/Factory | Identified exit to Extension 21680 | -4/Factory | Repaired Imp. Medium Armor Plating 21731 | -4/Factory | Repaired Imp. VSS Leg+ 21789 | -4/Factory | Repaired Thunder Leg+ 21822 | -4/Factory | Discovered new exit (range 19) 22148 | -4/Factory | Entered Extension 22375 | -4/Extension | Rescued a captive Derelict 22474 | -4/Extension | Rescued A7 22854 | -4/Extension | Spotted B-86 Titan 22886 | -4/Extension | Spotted B-86 Titan 22890 | -4/Extension | Destroyed B-86 Titan 22925 | -4/Extension | Lost 4 allies 22936 | -4/Extension | Destroyed B-86 Titan 22945 | -4/Extension | Extracted ID and sensor layout for unrecognized location from A7's data core 22982 | -4/Extension | Discovered new exit (range 7) 23209 | -4/Extension | Energy Cycler disabled 23214 | -4/Extension | Rescued a captive Derelict 23249 | -4/Extension | Lost 3 allies 23300 | -4/Extension | Build established: Scavenger-Skirmisher 23435 | -4/Extension | Discovered new exit (range 10) 23436 | -4/Extension | Discovered new exit (range 6) 23495 | -4/Extension | Entered Cetus 23495 | -4/Cetus | Accompanied by 5 allies 23508 | -4/Cetus | Spotted Cetus Guard 23508 | -4/Cetus | Spotted Cetus Guard 23509 | -4/Cetus | Spotted Cetus Guard 23510 | -4/Cetus | Spotted Cetus Guard 23519 | -4/Cetus | Destroyed Cetus Guard 23529 | -4/Cetus | Destroyed Cetus Guard 23537 | -4/Cetus | Destroyed Cetus Guard 23543 | -4/Cetus | Destroyed Cetus Guard 23560 | -4/Cetus | Lost 3 allies 23573 | -4/Cetus | Lost 4 parts (1n1u2w) 23693 | -4/Cetus | Discovered new exit (range 16) 23736 | -4/Cetus | Spotted Cetus Guard 23736 | -4/Cetus | Spotted Cetus Guard 23737 | -4/Cetus | Spotted Cetus Guard 23737 | -4/Cetus | Spotted Cetus Guard 23739 | -4/Cetus | Destroyed Cetus Guard 23751 | -4/Cetus | Destroyed Cetus Guard 23751 | -4/Cetus | Destroyed Cetus Guard 23757 | -4/Cetus | Destroyed Cetus Guard 23776 | -4/Cetus | Discovered new exit (range 16) 23784 | -4/Cetus | Met Revision 17 23941 | -4/Cetus | Build established: Scavenger-Tank 24011 | -4/Cetus | Entered Archives 24011 | -4/Archives | Accompanied by 3 allies 24098 | -4/Archives | Lost 3 allies 24246 | -4/Archives | Discovered new exit (range 15) 24274 | -4/Archives | Discovered new exit (range 13) 24304 | -4/Archives | Entered Hub_04(d) 24498 | -4/Hub_04(d) | Identified exit to Research 24498 | -4/Hub_04(d) | Targeted by mysterious "MATRIX" hacker. 24656 | -4/Hub_04(d) | Network Hub disabled 24864 | -4/Hub_04(d) | Entered Research 24864 | -3/Research | Evolved 2 slots: Propulsion x1, Utility x1 24963 | -3/Research | Found Prototype Device 24963 | -3/Research | Identified Adv. Kinecellerator 25064 | -3/Research | Revision forces began assault on 0b10 25089 | -3/Research | Met up with Revision 17++ 25199 | -3/Research | Discovered new exit (range 14) 25211 | -3/Research | Identified exit to Testing 25311 | -3/Research | Discovered new exit (range 11) 25399 | -3/Research | Build established: Scavenger-Skirmisher 25551 | -3/Research | Lost 4 allies 25564 | -3/Research | Research terminal network offline 25645 | -3/Research | Central database locked down 25846 | -3/Research | Spotted Striker 25897 | -3/Research | Destroyed Striker 25983 | -3/Research | Entered another Research area 25983 | -2/Research | Evolved 2 slots: Utility x2 26084 | -2/Research | Spotted B-90 Cyclops 26316 | -2/Research | Found Prototype Launcher 26316 | -2/Research | Identified Tactical Quantum Warhead 26393 | -2/Research | Identified exit to Access 26453 | -2/Research | Found Prototype Processor 26453 | -2/Research | Identified Exp. Core Analyzer 26842 | -2/Research | Entered Access 26842 | -1/Access | Evolved 2 slots: Propulsion x1, Utility x1 26877 | -1/Access | Build established: Hacker-Skirmisher 26932 | -1/Access | Found Prototype Launcher 26932 | -1/Access | Identified Hellfire Missile Launcher 27040 | -1/Access | Spotted B-99 Colossus 27104 | -1/Access | Found Gamma Bomb Array 27294 | -1/Access | Imp. Hacking Suite fried by hacking feedback 27523 | -1/Access | Build established: Scientist-Skirmisher 27818 | -1/Access | Discovered new exit (range 23) 27912 | -1/Access | System corruption reached 10% 27915 | -1/Access | Spotted B-99 Colossus 28378 | -1/Access | Discovered new exit (range 18) 28413 | -1/Access | Entered Command 28488 | -1/Command | Phase Generator disabled 28529 | -1/Command | Repaired Biometal Leg+ 28582 | -1/Command | Spotted Alpha 7 28583 | -1/Command | Spotted Striker 28590 | -1/Command | Spotted Executioner 28656 | -1/Command | Destroyed Alpha 7 28902 | -1/Command | Spotted Combat Programmer 28903 | -1/Command | Spotted Combat Programmer 28905 | -1/Command | Spotted M Guard 28913 | -1/Command | First assault squad dispatched 28913 | -1/Command | Destroyed Combat Programmer 28921 | -1/Command | Destroyed M Guard 28925 | -1/Command | Destroyed Combat Programmer 28947 | -1/Command | Destroyed M Guard 28947 | -1/Command | All MAIN.C guards destroyed 28981 | -1/Command | Lost 11 parts (2p2n5u2w) 29076 | -1/Command | Lost 6 parts (1p1n4u) 29110 | -1/Command | Met MAIN.C 29195 | -1/Command | System corruption reached 30% 29216 | -1/Command | Core integrity fell below 50% 29236 | -1/Command | Interfaced with 0b10 Conduit 29236 | *** | Assimilated 0b10! Last Messages --------------- 29201_ Nova Cannon+ destroyed. 29201_ System corrupted by crushing effect (+1). 29201_ Knocked back. 29202_ System corrupted: Component data lost. 29202_ K-01 Serf collects debris. 29204_ Centrium Leg+ destroyed. 29206_ K-01 Serf collects debris. 29207_ Adv. Point Defense System destroyed. 29207_ Flexi-carbon Leg+ destroyed. 29207_ Enh. Nova Cannon+ destroyed. 29207_ System corrupted by crushing effect (+3). 29207_ System corrupted by crushing effect (+2). 29207_ System corrupted by crushing effect (+5). 29209_ K-01 Serf collects debris. 29210_ Dropped Hcp. Storage Unit. 29212_ K-01 Serf collects debris. 29220_ JE,TZ#2BFZUB/WZAXEMGJIH|O QVW